bitfinex/quotes_BTCUSD_20251114
["timestamp","ask_amount","ask_price","bid_price","bid_amount"]
[1763124621667,3.76105198,95500.0,95499.0,0.0042]
[1763124622036,3.76105198,95500.0,95499.0,0.0002]
[1763124622255,3.76105198,95500.0,95499.0,0.0022]
[1763124622615,3.76105198,95500.0,95499.0,0.0002]
[1763124623023,3.76205198,95500.0,95499.0,0.0062]
[1763124623689,3.76105198,95500.0,95499.0,0.0012]
[1763124623891,3.80447072,95500.0,95499.0,0.0042]
[1763124624123,0.04341874,95499.0,95430.0,0.02023886]
[1763124624318,0.09904293,95475.0,95441.0,0.0994971]
[1763124624516,0.09904293,95475.0,95442.0,0.1104]
[1763124624764,0.09904293,95475.0,95441.0,0.00045417]
[1763124624972,0.09904293,95460.0,95441.0,0.00045417]
[1763124625176,0.09904293,95490.0,95444.0,0.09904293]
[1763124625387,0.09904293,95490.0,95445.0,0.09904293]
[1763124625596,0.09904293,95475.0,95441.0,0.00045417]
[1763124625865,0.02270068,95550.0,95465.0,0.323]
[1763124626034,0.02270068,95550.0,95450.0,0.47218591]
[1763124626035,0.01270069,95550.0,95470.0,0.47218372]
[1763124626248,0.01270069,95550.0,95473.0,0.2094833]
[1763124626452,0.01270069,95550.0,95475.0,0.04341874]
[1763124626627,0.01270069,95550.0,95473.0,0.323]
[1763124627029,0.01270069,95550.0,95470.0,0.01958366]
[1763124627248,0.04341874,95518.0,95470.0,0.00145417]
[1763124627827,0.04341874,95499.0,95470.0,0.00045417]
[1763124628034,0.09904293,95485.0,95473.0,0.002]
[1763124628249,0.09904293,95498.0,95473.0,0.002]
[1763124628468,0.09904293,95499.0,95470.0,0.00045417]
[1763124628702,0.0002,95540.0,95474.0,0.09904293]
[1763124628903,0.0002,95540.0,95475.0,0.38736663]
[1763124629104,0.0002,95540.0,95477.0,0.323]
[1763124629320,0.0002,95540.0,95475.0,0.04341874]
[1763124629523,0.0002,95540.0,95474.0,0.42204293]
[1763124629524,0.0002,95540.0,95477.0,0.323]
[1763124629741,0.09904293,95535.0,95475.0,0.04341874]
[1763124629987,3.76099898,95500.0,95477.0,0.323]
[1763124630846,3.76099898,95500.0,95496.0,0.20943099]
[1763124631067,3.76199898,95500.0,95499.0,0.323]
[1763124631471,3.76199898,95500.0,95493.0,0.20943852]
[1763124631678,3.76199898,95500.0,95497.0,0.2094292]
[1763124631886,3.76199898,95500.0,95497.0,0.20943025]
[1763124632100,3.76099898,95500.0,95499.0,0.53242627]
[1763124632369,3.76099898,95500.0,95499.0,0.57589501]
[1763124632994,3.76099898,95500.0,95499.0,2.60381203]
[1763124632995,3.149548,95500.0,95499.0,2.60381203]
[1763124633203,2.95409553,95500.0,95499.0,2.57594501]
[1763124633421,2.92266643,95500.0,95499.0,2.57899501]
[1763124633855,2.92266643,95500.0,95499.0,0.57604501]
[1763124634064,2.92266643,95500.0,95499.0,0.3232]
[1763124634277,2.92366643,95500.0,95499.0,0.0072]
[1763124634483,2.92366643,95500.0,95499.0,0.00325]
[1763124634918,2.92366643,95500.0,95499.0,0.00625]
[1763124635144,2.92366643,95500.0,95499.0,0.00325]
[1763124635363,2.92266643,95500.0,95499.0,0.00025]
[1763124635770,2.92266643,95500.0,95499.0,0.00825]
[1763124635771,2.92366643,95500.0,95499.0,0.00825]
[1763124636264,2.92266643,95500.0,95499.0,0.00325]
[1763124636460,2.96608517,95500.0,95499.0,0.00325]
[1763124636685,2.92266643,95500.0,95499.0,0.00425]
[1763124636903,2.92266643,95500.0,95499.0,0.00125]
[1763124637119,2.96608517,95500.0,95499.0,0.00025]
[1763124637561,2.96608517,95500.0,95499.0,0.00225]
[1763124638614,0.04341874,95499.0,95430.0,0.00075829]
[1763124638818,0.04341874,95499.0,95430.0,0.00045417]
[1763124639035,0.04341874,95499.0,95430.0,0.02571779]
[1763124639256,0.36641874,95499.0,95432.0,0.323]
[1763124639476,0.36641874,95499.0,95430.0,0.00045417]
[1763124639477,0.09904293,95454.0,95430.0,0.00045417]
[1763124639688,0.36641874,95453.0,95430.0,0.00045417]
[1763124639906,0.323,95453.0,95430.0,0.00045417]
[1763124640159,0.09904293,95469.0,95434.0,0.20956823]
[1763124640375,0.09904293,95469.0,95430.0,0.00145417]
[1763124640602,0.09904293,95469.0,95435.0,0.09904293]
[1763124640820,0.09904293,95469.0,95430.0,0.00145417]
[1763124641042,0.09904293,95469.0,95431.0,0.01779824]
[1763124641472,0.09904293,95454.0,95430.0,0.00145417]
[1763124641688,0.09904293,95454.0,95431.0,0.323]
[1763124641890,0.09904293,95454.0,95430.0,0.00145417]
[1763124642109,0.09904293,95454.0,95430.0,0.00045417]
[1763124642577,0.09904293,95454.0,95430.0,0.00145417]
[1763124642801,0.323,95468.0,95430.0,0.00145417]
[1763124643023,0.09904293,95469.0,95430.0,0.00045417]
[1763124643024,0.09904293,95454.0,95430.0,0.00045417]
[1763124643246,0.09904293,95469.0,95431.0,0.10104293]
[1763124643461,0.09904293,95484.0,95435.0,0.323]
[1763124643680,0.09904293,95484.0,95446.0,0.09904293]
[1763124643907,0.09904293,95469.0,95430.0,0.00045417]
[1763124644118,0.09904293,95454.0,95430.0,0.00045417]
[1763124644541,0.09904293,95438.0,95430.0,0.00045417]
[1763124644974,0.04341874,95437.0,95430.0,0.00045417]
[1763124646008,0.04341874,95437.0,95430.0,0.002]
[1763124646431,0.04341874,95437.0,95400.0,0.01048218]
[1763124646641,0.09904293,95438.0,95400.0,0.01061835]
[1763124646847,0.09904293,95438.0,95430.0,0.001]
[1763124647484,0.04341874,95437.0,95430.0,0.001]
[1763124647688,0.09904293,95438.0,95430.0,0.001]
[1763124647946,0.04341874,95437.0,95430.0,0.001]
[1763124648152,0.04341874,95437.0,95430.0,0.00013617]
[1763124649440,0.04341874,95437.0,95430.0,0.00113617]
[1763124649647,0.00999999,95420.0,95393.0,6.853e-05]
[1763124649864,0.04341874,95409.0,95393.0,0.00020483]
[1763124650489,0.00999999,95420.0,95393.0,0.00020483]
[1763124650700,0.04341874,95429.0,95393.0,0.00020483]
[1763124650909,0.14246167,95394.0,95393.0,0.00020483]
[1763124653499,0.14246167,95394.0,95393.0,0.00120483]
[1763124654473,0.14246167,95394.0,95393.0,0.00020483]
[1763124655070,0.14246167,95394.0,95393.0,0.00120483]
[1763124655315,0.09904293,95394.0,95393.0,0.00120483]
[1763124655522,0.09904293,95409.0,95393.0,0.00020483]
[1763124655764,0.09904293,95394.0,95393.0,0.00020483]
[1763124656505,0.14246167,95394.0,95393.0,0.00120483]
[1763124657512,0.09904293,95394.0,95393.0,0.00120483]
[1763124657764,0.09904293,95394.0,95393.0,0.00020483]
[1763124658273,0.09904293,95394.0,95393.0,0.00120483]
[1763124658674,0.09904293,95394.0,95393.0,0.00020483]
[1763124658818,0.05212134,95409.0,95393.0,0.00020483]
[1763124658999,0.01034762,95408.0,95393.0,0.00120483]
[1763124659447,0.01034762,95408.0,95393.0,0.00020483]
[1763124659696,0.05212134,95409.0,95393.0,0.00020483]
[1763124659697,0.05212134,95409.0,95393.0,0.00120483]
[1763124659914,0.05212134,95409.0,95362.0,0.04341874]
[1763124660120,0.05212134,95409.0,95373.0,0.20970145]
[1763124660349,0.05212134,95409.0,95362.0,0.043874]
[1763124660350,0.09904293,95394.0,95362.0,0.00045526]
[1763124660575,0.09904293,95394.0,95362.0,0.00934463]
[1763124660779,0.10911805,95393.0,95362.0,0.00045526]
[1763124660998,0.02620325,95408.0,95379.0,0.2096878]
[1763124661218,0.09904293,95394.0,95393.0,0.001]
[1763124661635,0.14246167,95394.0,95393.0,0.001]
[1763124661870,0.04341874,95393.0,95340.0,0.01048877]
[1763124662081,0.04341874,95391.0,95379.0,0.001]
[1763124662292,0.09904293,95394.0,95379.0,0.00145526]
[1763124662293,0.02620819,95390.0,95379.0,0.00145526]
[1763124662498,0.04341874,95392.0,95379.0,0.00045526]
[1763124662817,0.09904293,95394.0,95379.0,0.00045526]
[1763124663054,0.02620792,95391.0,95379.0,0.00045526]
[1763124663910,0.02116943,95390.0,95379.0,0.00045526]
[1763124664663,0.01430918,95389.0,95379.0,0.00045526]
[1763124665117,0.02135895,95388.0,95379.0,0.00045526]
[1763124665346,0.09904293,95394.0,95379.0,0.00045526]
[1763124665725,0.03665458,95409.0,95379.0,0.00045526]
[1763124665929,0.03665458,95409.0,95381.0,0.20968432]
[1763124666131,0.00999999,95460.0,95390.0,0.01048327]
[1763124666337,0.09904293,95423.0,95400.0,0.01048218]
[1763124666545,0.00511153,95437.0,95400.0,0.01048218]
[1763124666707,0.09904293,95423.0,95391.0,0.04341874]
[1763124666916,0.09904293,95408.0,95382.0,0.09904293]
[1763124667119,0.09904293,95408.0,95379.0,0.00060526]
[1763124667317,0.00511153,95422.0,95379.0,0.00060526]
[1763124667587,0.00511153,95422.0,95381.0,0.20968348]
[1763124667798,0.00511153,95422.0,95380.0,0.01048437]
[1763124668060,0.00511153,95422.0,95382.0,0.20968164]
[1763124668311,0.09904293,95408.0,95379.0,0.00060526]
[1763124668591,0.00511153,95407.0,95379.0,0.00060526]
[1763124668825,0.00511153,95407.0,95381.0,0.2096839]
[1763124669054,0.00511153,95407.0,95382.0,0.01623223]
[1763124669266,0.00511153,95422.0,95390.0,0.01048327]
[1763124669474,0.00511153,95421.0,95388.0,0.323]
[1763124669990,0.00511153,95421.0,95392.0,0.2096596]
[1763124670196,0.00511153,95437.0,95400.0,0.01048218]
[1763124670464,0.09904293,95438.0,95404.0,0.09904293]
[1763124670718,0.09904293,95438.0,95394.0,0.03693061]
[1763124670719,0.00511153,95437.0,95396.0,0.02790277]
[1763124670923,0.10415446,95437.0,95410.0,0.01048108]
[1763124671131,0.10415446,95437.0,95408.0,0.53262482]
[1763124671354,0.10415446,95437.0,95411.0,0.2096184]
[1763124671549,0.03669454,95493.0,95408.0,0.53262482]
[1763124671550,2.92266643,95500.0,95430.0,0.01047888]
[1763124671752,0.00511153,95468.0,95430.0,0.01047888]
[1763124671951,0.00511153,95468.0,95430.0,0.05389762]
[1763124672158,0.00524766,95468.0,95430.0,0.26347357]
[1763124672372,0.00524766,95468.0,95430.0,0.04341874]
[1763124672578,0.00524766,95468.0,95433.0,0.20957084]
[1763124672778,0.00524766,95468.0,95429.0,0.2095777]
[1763124672779,0.00013613,95468.0,95429.0,0.02808538]
[1763124672971,0.09904293,95454.0,95428.0,0.02808538]
[1763124673177,0.00511153,95453.0,95425.0,0.02808538]
[1763124673356,0.00524766,95468.0,95430.0,0.01047888]
[1763124673858,0.00013613,95468.0,95440.0,0.04341874]
[1763124674057,0.00013613,95468.0,95439.0,0.04341874]
[1763124674258,0.00013613,95468.0,95438.0,0.323]
[1763124674259,0.09904293,95467.0,95438.0,0.323]
[1763124674509,0.00511153,95466.0,95438.0,0.323]
[1763124674713,0.00511153,95466.0,95433.0,0.02808538]
[1763124674905,0.00511153,95466.0,95430.0,0.323]
[1763124675219,0.00013613,95468.0,95434.0,0.323]
[1763124675438,0.09904293,95467.0,95440.0,0.09904293]
[1763124675639,0.09904293,95467.0,95440.0,0.42204293]
[1763124675808,0.00511153,95466.0,95440.0,0.323]
[1763124676009,0.00511153,95466.0,95441.0,0.20955354]
[1763124676213,0.00511153,95466.0,95433.0,0.02808538]
[1763124676390,0.00511153,95466.0,95435.0,0.09904293]
[1763124676596,0.00511153,95466.0,95435.0,0.30860866]
[1763124676760,0.00013613,95468.0,95438.0,0.04341874]
[1763124676956,0.09904293,95481.0,95438.0,0.04341874]
[1763124677213,0.09904293,95481.0,95450.0,0.09904293]
[1763124677543,0.09904293,95480.0,95446.0,0.323]
[1763124677699,0.09904293,95480.0,95450.0,0.09904293]
[1763124678339,0.36378947,95499.0,95451.0,0.20953159]
[1763124678537,0.09904293,95484.0,95451.0,0.09904293]
[1763124679100,0.09904293,95484.0,95450.0,0.001]
[1763124679520,0.09904293,95469.0,95450.0,0.001]
[1763124679666,0.09904293,95469.0,95438.0,0.00013613]
[1763124679667,0.09904293,95468.0,95438.0,0.00013613]
[1763124680053,0.09904293,95468.0,95450.0,0.001]
[1763124680459,0.09904293,95453.0,95438.0,0.00013613]
[1763124680857,0.09904293,95453.0,95438.0,0.00213613]
[1763124681518,0.36641874,95452.0,95438.0,0.00013613]
[1763124681735,0.36641874,95452.0,95438.0,0.00113613]
[1763124681736,0.05341873,95450.0,95438.0,0.00113613]
[1763124681964,0.04341874,95448.0,95438.0,0.00213613]
[1763124682149,0.04341874,95429.0,95380.0,0.00015]
[1763124682351,0.09904293,95397.0,95380.0,0.00045526]
[1763124682988,0.09904293,95426.0,95380.0,0.01093963]
[1763124682989,0.04341874,95425.0,95380.0,0.01093963]
[1763124683190,0.09904293,95411.0,95380.0,0.00045526]
[1763124683407,0.09904293,95411.0,95380.0,0.01093963]
[1763124683838,0.09904293,95411.0,95380.0,0.00045526]
[1763124684275,0.09904293,95396.0,95380.0,0.00045526]
[1763124684489,0.09904293,95411.0,95380.0,0.00045526]
[1763124684917,0.09904293,95426.0,95382.0,0.09904293]
[1763124685131,0.09904293,95411.0,95383.0,0.01455824]
[1763124685338,0.09904293,95411.0,95384.0,0.01285949]
[1763124685548,0.09904293,95396.0,95380.0,0.00045526]
[1763124686240,0.09904293,95396.0,95380.0,0.00145526]
[1763124686455,0.09904293,95394.0,95380.0,0.00145526]
[1763124686667,0.09904293,95394.0,95380.0,0.00045526]
[1763124686877,0.09904293,95394.0,95380.0,0.00145526]
[1763124687314,0.36641874,95393.0,95380.0,0.00145526]
[1763124687437,0.36641874,95393.0,95380.0,0.00045526]
[1763124687639,0.04341874,95391.0,95380.0,0.00145526]
[1763124688297,0.01921861,95390.0,95380.0,0.00145526]
[1763124688483,0.323,95392.0,95380.0,0.00145526]
[1763124688484,0.06263425,95389.0,95380.0,0.00145526]
[1763124688657,0.09904293,95394.0,95380.0,0.00145526]
[1763124688865,0.09904293,95410.0,95380.0,0.00145526]
[1763124689060,0.09904293,95410.0,95380.0,0.22062572]
[1763124689261,0.001,95393.0,95380.0,0.00045526]
[1763124689677,0.001,95393.0,95330.0,0.0004]
[1763124689678,0.04341874,95391.0,95330.0,0.0004]
[1763124689903,0.04341874,95389.0,95330.0,0.0004]
[1763124690101,0.01921412,95388.0,95330.0,0.0004]
[1763124690302,0.04341874,95386.0,95330.0,0.22068709]
[1763124690510,0.00045369,95391.0,95331.0,0.02097953]
[1763124690713,0.04341874,95389.0,95330.0,0.0004]
[1763124691028,0.04341874,95387.0,95330.0,0.0004]
[1763124691235,0.04341874,95385.0,95330.0,0.0004]
[1763124691436,0.04341874,95379.0,95330.0,0.0004]
[1763124691572,0.09904293,95331.0,95330.0,0.0004]
[1763124692707,0.09949634,95331.0,95330.0,0.0014]
[1763124693283,0.00045341,95331.0,95330.0,0.0024]
[1763124693887,0.00045341,95331.0,95330.0,0.02237975]
[1763124694092,0.00045341,95331.0,95330.0,0.0014]
[1763124694476,0.00045341,95331.0,95330.0,0.0004]
[1763124695780,0.00045341,95331.0,95330.0,0.0014]
[1763124696563,0.00045341,95331.0,95330.0,0.0034]
[1763124696744,0.00045341,95331.0,95303.0,0.09904293]
[1763124696951,0.00045341,95331.0,95302.0,0.01043877]
[1763124696952,0.00045341,95331.0,95302.0,0.22029749]
[1763124697154,0.00045341,95331.0,95305.0,0.2098507]
[1763124697354,0.00045341,95331.0,95330.0,0.001]
[1763124698135,0.00045341,95331.0,95330.0,0.002]
[1763124698566,0.00045341,95331.0,95330.0,0.001]
[1763124698762,0.00045341,95331.0,95290.0,0.0004]
[1763124698967,0.09904293,95317.0,95302.0,0.001]
[1763124699324,0.09904293,95317.0,95290.0,0.0004]
[1763124699890,0.09904293,95302.0,95290.0,0.0004]
[1763124700303,0.323,95316.0,95290.0,0.0004]
[1763124700500,0.323,95360.0,95306.0,0.09904293]
[1763124700725,0.01999998,95380.0,95307.0,0.09904293]
[1763124700962,0.01999998,95380.0,95301.0,0.323]
[1763124700963,0.09904293,95331.0,95301.0,0.323]
[1763124701166,0.09904293,95331.0,95290.0,0.01083877]
[1763124701167,0.09904293,95316.0,95290.0,0.01083877]
[1763124701384,0.09904293,95316.0,95290.0,0.0004]
[1763124701791,0.09904293,95331.0,95291.0,0.12003127]
[1763124702121,0.09904293,95331.0,95294.0,0.20987669]
[1763124702323,0.09949634,95331.0,95292.0,0.2098812]
[1763124702522,0.09949634,95331.0,95291.0,0.09904293]
[1763124702728,0.09904293,95316.0,95290.0,0.0004]
[1763124702926,0.09904293,95316.0,95290.0,0.0024]
[1763124703126,0.09904293,95316.0,95291.0,0.09904293]
[1763124703345,0.09904293,95316.0,95291.0,0.12003127]
[1763124703546,0.09949634,95331.0,95295.0,0.2098727]
[1763124703747,0.09949634,95331.0,95301.0,0.323]
[1763124703946,0.00045341,95331.0,95307.0,0.04341874]
[1763124704147,0.00045341,95331.0,95314.0,0.20983273]
[1763124704347,0.00045341,95331.0,95316.0,0.20982659]
[1763124704598,0.00045341,95331.0,95330.0,0.04341874]
[1763124704731,0.00045341,95331.0,95330.0,0.05385751]
[1763124705355,0.00045341,95331.0,95330.0,0.3948591]
[1763124706267,0.00045341,95331.0,95330.0,0.4008591]
[1763124706674,0.00045341,95331.0,95330.0,0.3978591]
[1763124706996,0.00045341,95331.0,95330.0,2.4228491]
[1763124707207,0.00045341,95331.0,95330.0,2.4018591]
[1763124707505,0.09904293,95410.0,95341.0,0.04341874]
[1763124707730,0.09904293,95395.0,95351.0,0.323]
[1763124707951,0.09904293,95410.0,95366.0,0.09904293]
[1763124708158,0.09904293,95395.0,95366.0,0.01043877]
[1763124708366,0.09904293,95380.0,95354.0,0.01043877]
[1763124709130,0.09904293,95365.0,95342.0,0.01043877]
[1763124709348,0.09904293,95365.0,95311.0,0.20983814]
[1763124709349,0.09904293,95347.0,95303.0,0.05538781]
[1763124709491,0.323,95364.0,95320.0,0.01049097]
[1763124709702,0.09904293,95365.0,95336.0,0.01043877]
[1763124709903,0.09904293,95365.0,95329.0,0.01043877]
[1763124710490,0.09904293,95395.0,95342.0,0.09904293]
[1763124710692,0.09904293,95380.0,95350.0,0.01048767]
[1763124710919,0.09904293,95380.0,95342.0,0.323]
[1763124711135,0.09904293,95365.0,95341.0,0.01057518]
[1763124711565,0.09904293,95380.0,95342.0,0.01887941]
[1763124711857,0.09904293,95365.0,95341.0,0.00013641]
[1763124712502,0.01999998,95400.0,95341.0,0.00013641]
[1763124712503,0.09904293,95392.0,95341.0,0.00013641]
[1763124712702,0.09904293,95374.0,95347.0,0.20975988]
[1763124712911,0.09904293,95374.0,95341.0,0.00113641]
[1763124713121,0.09904293,95374.0,95341.0,0.00013641]
[1763124713534,0.09904293,95374.0,95343.0,0.323]
[1763124713840,0.09904293,95374.0,95342.0,0.12002004]
[1763124713841,0.09904293,95374.0,95344.0,0.01397212]
[1763124713977,0.09904293,95392.0,95354.0,0.20974374]
[1763124714179,0.09904293,95392.0,95353.0,0.20974694]
[1763124714386,0.09904293,95392.0,95352.0,0.01043877]
[1763124714387,0.01926449,95391.0,95352.0,0.01043877]
[1763124714584,0.09904293,95376.0,95352.0,0.01043877]
[1763124714787,0.09904293,95376.0,95341.0,0.04355515]
[1763124715210,0.09904293,95376.0,95342.0,0.09904293]
[1763124715405,0.09904293,95376.0,95343.0,0.09904293]
[1763124715831,0.09904293,95376.0,95352.0,0.001]
[1763124716086,0.09904293,95376.0,95353.0,0.20974694]
[1763124716275,0.09904293,95392.0,95360.0,0.01048657]
[1763124717014,0.09904293,95392.0,95360.0,0.22021811]
[1763124717233,0.09904293,95392.0,95361.0,0.01654912]
[1763124717416,0.09904293,95392.0,95351.0,0.323]
[1763124717620,0.09904293,95377.0,95341.0,0.04355515]
[1763124717785,0.09904293,95377.0,95342.0,0.09904293]
[1763124718586,0.09904293,95377.0,95341.0,0.00013641]
[1763124718987,0.09904293,95362.0,95352.0,0.001]
[1763124719196,0.09904293,95377.0,95352.0,0.001]
[1763124719396,0.01926629,95376.0,95344.0,0.323]
[1763124719617,0.01926629,95375.0,95345.0,0.02075812]
[1763124719878,0.09904293,95377.0,95352.0,0.001]
[1763124720239,0.09904293,95362.0,95352.0,0.001]
[1763124720454,0.10904293,95392.0,95352.0,0.001]
[1763124720455,0.01,95392.0,95354.0,0.04341874]
[1763124720658,0.01,95392.0,95369.0,0.04341874]
[1763124720891,0.01,95392.0,95370.0,0.04341874]
[1763124721115,0.01,95392.0,95361.0,0.323]
[1763124721318,0.09904293,95391.0,95352.0,0.03753638]
[1763124721614,0.09904293,95390.0,95355.0,0.04341874]
[1763124721819,0.09904293,95390.0,95351.0,0.01043877]
[1763124722016,0.09904293,95375.0,95351.0,0.00013641]
[1763124722645,0.09904293,95390.0,95360.0,0.01048657]
[1763124722840,0.09904293,95390.0,95353.0,0.04341874]
[1763124723148,0.01,95392.0,95365.0,0.36641874]
[1763124723364,0.01,95392.0,95371.0,0.36641874]
[1763124723831,0.09904293,95391.0,95365.0,0.01043877]
[1763124723966,0.42204293,95391.0,95365.0,0.01043877]
[1763124724162,0.42204293,95391.0,95356.0,0.04341874]
[1763124724368,0.42204293,95391.0,95355.0,0.1104]
[1763124724369,0.09904293,95376.0,95341.0,0.20977319]
[1763124724610,0.09904293,95376.0,95340.0,0.02029278]
[1763124724895,0.09904293,95376.0,95329.0,0.01043877]
[1763124724896,0.3422811,95375.0,95351.0,0.00113641]
[1763124725110,0.0192811,95374.0,95351.0,0.00113641]
[1763124725275,0.0192811,95373.0,95351.0,0.00013641]
[1763124725481,0.323,95375.0,95351.0,0.00013641]
[1763124725752,0.323,95375.0,95351.0,0.00113641]
[1763124725753,0.01928177,95374.0,95351.0,0.00113641]
[1763124725956,0.323,95375.0,95351.0,0.00113641]
[1763124726100,0.323,95375.0,95351.0,0.00013641]
[1763124726485,0.323,95375.0,95351.0,0.00113641]
[1763124727683,0.323,95375.0,95351.0,0.00013641]
[1763124727891,0.09904293,95361.0,95351.0,0.00013641]
[1763124728088,0.09904293,95361.0,95351.0,0.00113641]
[1763124728496,0.00999999,95400.0,95351.0,0.00113641]
[1763124728497,0.09904293,95410.0,95353.0,0.2089295]
[1763124728717,0.09904293,95391.0,95360.0,0.01048657]
[1763124728924,0.12681989,95426.0,95362.0,0.36641874]
[1763124728925,0.09904293,95426.0,95362.0,0.36641874]
[1763124729121,0.09904293,95426.0,95390.0,0.20966543]
[1763124729505,0.09904293,95426.0,95390.0,0.01043877]
[1763124730221,0.09904293,95426.0,95390.0,0.01057518]
[1763124730664,0.323,95425.0,95390.0,0.00013641]
[1763124731286,0.323,95410.0,95390.0,0.00013641]
[1763124731692,0.09904293,95391.0,95390.0,0.00013641]
[1763124731895,0.323,95410.0,95390.0,0.00013641]
[1763124732098,0.323,95410.0,95390.0,0.00113641]
[1763124732509,0.323,95410.0,95390.0,0.00013641]
[1763124732961,0.09904293,95391.0,95390.0,0.00113641]
[1763124733306,0.11836811,95391.0,95390.0,0.00113641]
[1763124733660,0.01932518,95391.0,95390.0,0.00113641]
[1763124733890,0.323,95410.0,95390.0,0.00113641]
[1763124734097,0.42204293,95391.0,95390.0,0.00013641]
[1763124734271,0.44138699,95391.0,95390.0,0.00013641]
[1763124734410,0.44138699,95391.0,95390.0,0.00113641]
[1763124734630,0.01934406,95391.0,95390.0,0.00113641]
[1763124734835,0.323,95410.0,95390.0,0.00013641]
[1763124735874,0.323,95410.0,95366.0,0.00711156]
[1763124736074,0.01013605,95392.0,95370.0,0.04341874]
[1763124736299,0.01013605,95392.0,95371.0,0.02097073]
[1763124736494,0.01013605,95392.0,95374.0,0.20970075]
[1763124736697,0.01013605,95392.0,95369.0,0.09904293]
[1763124736698,0.01013605,95392.0,95364.0,0.04341874]
[1763124736900,0.09904293,95391.0,95364.0,0.04341874]
[1763124737100,0.09904293,95391.0,95362.0,0.323]
[1763124737101,0.09904293,95391.0,95369.0,0.09904293]
[1763124737526,0.09904293,95391.0,95363.0,0.323]
[1763124737724,0.09904293,95391.0,95357.0,0.05538781]
[1763124737973,0.09904293,95391.0,95355.0,0.25315908]
[1763124738192,0.09904293,95391.0,95356.0,0.09904293]
[1763124738406,0.09904293,95391.0,95352.0,0.05538781]
[1763124738609,0.09904293,95391.0,95351.0,0.323]
[1763124738610,0.0193571,95390.0,95369.0,0.001]
[1763124738871,0.09904293,95376.0,95369.0,0.001]
[1763124739071,0.09904293,95376.0,95336.0,0.07371125]
[1763124739072,0.09904293,95376.0,95338.0,0.05538781]
[1763124739238,0.34235924,95375.0,95326.0,0.05538781]
[1763124739568,0.34235924,95375.0,95323.0,0.323]
[1763124739569,0.01935924,95374.0,95323.0,0.323]
[1763124739769,0.09904293,95357.0,95324.0,0.05538781]
[1763124739918,0.09904293,95357.0,95323.0,0.323]
[1763124740123,0.09904293,95357.0,95320.0,0.05538781]
[1763124740502,0.09904293,95357.0,95317.0,0.05538781]
[1763124740705,0.01935489,95356.0,95318.0,0.04341874]
[1763124740941,0.01935504,95355.0,95321.0,0.09904293]
[1763124741156,0.323,95356.0,95321.0,0.09904293]
[1763124741306,0.09904293,95376.0,95340.0,0.34670722]
[1763124741508,0.01934938,95375.0,95341.0,0.02097733]
[1763124741729,0.09904293,95376.0,95344.0,0.20976613]
[1763124741932,0.09904293,95376.0,95345.0,0.02097645]
[1763124742177,0.09904293,95376.0,95339.0,0.04341874]
[1763124742375,0.09904293,95361.0,95342.0,0.02820372]
[1763124742592,0.323,95375.0,95343.0,0.02097689]
[1763124742739,0.09904293,95374.0,95343.0,0.04918061]
[1763124742941,0.34235316,95373.0,95338.0,0.04341874]
[1763124743167,0.09904293,95359.0,95336.0,0.02820372]
[1763124743368,0.09904293,95359.0,95334.0,0.02820372]
[1763124743574,0.09904293,95359.0,95335.0,0.02820372]
[1763124744017,0.09904293,95359.0,95334.0,0.02820372]
[1763124744238,0.09904293,95359.0,95335.0,0.02820372]
[1763124744378,0.09904293,95359.0,95336.0,0.02820372]
[1763124744580,0.323,95373.0,95337.0,0.09904293]
[1763124744783,0.323,95373.0,95340.0,0.34670722]
[1763124745007,0.32249,95373.0,95341.0,0.02097733]
[1763124745210,0.09904293,95374.0,95337.0,0.02820372]
[1763124745427,0.01934941,95373.0,95337.0,0.02820372]
[1763124745629,0.09904293,95374.0,95338.0,0.30882155]
[1763124745830,0.09904293,95374.0,95340.0,0.34670722]
[1763124746075,0.09904293,95374.0,95333.0,0.323]
[1763124746076,0.09904293,95359.0,95336.0,0.02820372]
[1763124746189,0.09904293,95359.0,95335.0,0.02820372]
[1763124746432,0.09904293,95359.0,95332.0,0.02820372]
[1763124747268,0.09904293,95359.0,95320.0,0.36488413]
[1763124747269,0.09904293,95359.0,95326.0,0.02820372]
[1763124747469,0.34233744,95358.0,95318.0,0.00045341]
[1763124747797,0.01933744,95357.0,95320.0,0.34670722]
[1763124748004,0.01933744,95356.0,95321.0,0.02098173]
[1763124748168,0.323,95358.0,95318.0,0.00045341]
[1763124748169,0.09904293,95336.0,95318.0,0.00045341]
[1763124748556,0.09904293,95336.0,95318.0,0.00145341]
[1763124748991,0.09904293,95320.0,95318.0,0.00045341]
[1763124749370,0.323,95335.0,95318.0,0.00245341]
[1763124749568,0.09904293,95334.0,95318.0,0.00245341]
[1763124749768,0.09904293,95319.0,95318.0,0.00245341]
[1763124750592,0.09904293,95319.0,95318.0,0.00045341]
[1763124750800,0.09904293,95334.0,95318.0,0.00145341]
[1763124751012,0.09904293,95359.0,95318.0,0.00145341]
[1763124751215,0.01999998,95390.0,95318.0,0.00145341]
[1763124751216,0.11832963,95358.0,95330.0,0.34670722]
[1763124751441,0.09904293,95358.0,95330.0,0.34670722]
[1763124751614,0.09904293,95358.0,95323.0,0.20981199]
[1763124751814,0.09904293,95358.0,95323.0,0.20981247]
[1763124752061,0.09904293,95358.0,95323.0,0.5328123]
[1763124752269,0.09904293,95358.0,95326.0,0.09904293]
[1763124752467,0.09904293,95358.0,95327.0,0.23078418]
[1763124752669,0.09904293,95358.0,95330.0,0.34670722]
[1763124752877,0.09904293,95391.0,95340.0,0.35719599]
[1763124753084,0.09904293,95391.0,95341.0,0.12002026]
[1763124753291,0.09904293,95372.0,95341.0,0.04341874]
[1763124753493,0.09904293,95372.0,95344.0,0.04341874]
[1763124753721,0.09904293,95391.0,95360.0,0.35719379]
[1763124753976,0.09904293,95391.0,95360.0,0.34670722]
[1763124754379,0.09904293,95376.0,95345.0,0.02820372]
[1763124754596,0.09904293,95376.0,95344.0,0.04341874]
[1763124754810,0.09904293,95376.0,95340.0,0.02820372]
[1763124755024,0.09904293,95376.0,95330.0,0.39012596]
[1763124755025,0.09904293,95376.0,95338.0,0.04341874]
[1763124755238,0.09904293,95376.0,95340.0,0.34670722]
[1763124755239,0.09904293,95361.0,95340.0,0.34670722]
[1763124755441,0.09904293,95361.0,95338.0,0.00013633]
[1763124756398,0.09904293,95376.0,95351.0,0.04341874]
[1763124756628,0.03669454,95418.0,95347.0,0.09904293]
[1763124756629,0.02780615,95422.0,95375.0,0.20969696]
[1763124756873,0.02780615,95425.0,95367.0,0.04341874]
[1763124757246,0.323,95410.0,95367.0,0.25313383]
[1763124757454,0.00999999,95430.0,95367.0,0.04341874]
[1763124757859,0.01013605,95392.0,95370.0,0.04341874]
[1763124758325,0.09904293,95390.0,95361.0,0.35112703]
[1763124758526,0.09904293,95390.0,95360.0,0.23945081]
[1763124758527,0.09904293,95390.0,95365.0,0.04341874]